fUST/lending_fUST_20250626
["ID","MTS","AMOUNT","RATE_DAILY","PERIOD"]
[367839126,1750941073989,-2659.29,0.0002,2]
[367839127,1750941073999,-460.0,0.0002,2]
[367839128,1750941074009,-581.91,0.0002,2]
[367839129,1750941074019,-2051.31,0.0002,2]
[367839130,1750941074032,-479.83,0.0002,2]
[367839131,1750941074042,-569.65,0.0002,2]
[367839132,1750941074051,-578.62613526,0.00020042,2]
[367839133,1750941074061,-243.0,0.00020056,2]
[367839134,1750941074071,-500.43078147,0.00020093,2]
[367839135,1750941074080,-1000.0,0.00020093,2]
[367839136,1750941074090,-1200.0,0.00020093,2]
[367839137,1750941074100,-500.0,0.00020093,2]
[367839138,1750941074110,-1000.0,0.00020093,2]
[367839139,1750941074123,-547.72040314,0.00020093,2]
[367839140,1750941074133,-1000.0,0.00020093,2]
[367839141,1750941074142,-653.17919225,0.00020093,2]
[367839142,1750941074151,-1000.0,0.00020093,2]
[367839143,1750941074162,-964.29479316,0.00020093,2]
[367839144,1750941074171,-1000.0,0.00020093,2]
[367839145,1750941074181,-600.03530226,0.00020097,2]
[367839146,1750941074191,-622.23660845,0.00020152,2]
[367839147,1750941074202,-243.0,0.00020155,2]
[367839148,1750941074212,-6544.25534237,0.00020168,2]
[367839149,1750941074222,-193.496203,0.00020187,2]
[367839150,1750941074233,-2161.0,0.00020202,2]
[367839151,1750941074242,-654.0,0.00020202,2]
[367839152,1750941074253,-645.25936296,0.00020207,2]
[367839153,1750941074263,-2764.78833449,0.0002021,2]
[367839154,1750941074272,-669.13395939,0.00020262,2]
[367839155,1750941074281,-460.0,0.00020273,2]
[367839156,1750941074291,-460.0,0.00020273,2]
[367839157,1750941074300,-460.0,0.00020273,2]
[367839158,1750941074309,-460.0,0.00020273,2]
[367839159,1750941074318,-473.28,0.00020273,2]
[367839160,1750941074327,-460.0,0.00020273,2]
[367839161,1750941074336,-888.46,0.00020273,2]
[367839162,1750941074346,-791.24,0.00020273,2]
[367839163,1750941074355,-460.0,0.00020273,2]
[367839164,1750941074364,-807.51,0.00020273,2]
[367839165,1750941074373,-460.0,0.00020273,2]
[367839166,1750941074383,-460.0,0.00020273,2]
[367839167,1750941074393,-503.24,0.00020273,2]
[367839168,1750941074403,-631.7,0.00020273,2]
[367839169,1750941074412,-460.0,0.00020273,2]
[367839170,1750941074422,-742.62,0.00020273,2]
[367839171,1750941074432,-460.0,0.00020273,2]
[367839172,1750941074441,-460.0,0.00020273,2]
[367839173,1750941074451,-471.26,0.00020273,2]
[367839174,1750941074464,-460.0,0.00020273,2]
[367839175,1750941074473,-460.0,0.00020273,2]
[367839176,1750941074482,-476.85753628,0.00020273,2]
[367839177,1750941074491,-803.0,0.00020273,2]
[367839178,1750941074500,-566.19,0.00020273,2]
[367839179,1750941074509,-531.21,0.00020273,2]
[367839180,1750941074519,-586.58,0.00020273,2]
[367839181,1750941074528,-460.0,0.00020273,2]
[367839182,1750941074537,-460.0,0.00020273,2]
[367839183,1750941074546,-524.62,0.00020273,2]
[367839184,1750941074556,-460.0,0.00020273,2]
[367839185,1750941074565,-1446.03,0.00020273,2]
[367839186,1750941074574,-1888.57,0.00020273,2]
[367839187,1750941074583,-460.0,0.00020273,2]
[367839188,1750941074593,-2010.83,0.00020273,2]
[367839189,1750941074602,-460.0,0.00020273,2]
[367839190,1750941074611,-460.0,0.00020273,2]
[367839191,1750941074620,-460.0,0.00020273,2]
[367839192,1750941074628,-460.0,0.00020273,2]
[367839193,1750941074638,-706.02,0.00020273,2]
[367839194,1750941074649,-947.82,0.00020273,2]
[367839195,1750941074659,-686.64,0.00020273,2]
[367839196,1750941074673,-528.25,0.00020273,2]
[367839197,1750941074682,-630.9,0.00020273,2]
[367839198,1750941074691,-4731.44,0.00020273,2]
[367839199,1750941074701,-464.51,0.00020273,2]
[367839200,1750941074711,-719.52,0.00020273,2]
[367839201,1750941074720,-460.0,0.00020273,2]
[367839202,1750941074731,-806.15,0.00020273,2]
[367839203,1750941074741,-548.98,0.00020273,2]
[367839204,1750941074750,-460.0,0.00020273,2]
[367839205,1750941074759,-5800.83,0.00020273,2]
[367839206,1750941074770,-692.44,0.00020273,2]
[367839207,1750941074779,-866.92,0.00020273,2]
[367839208,1750941074789,-460.0,0.00020273,2]
[367839209,1750941074799,-2909.6,0.00020273,2]
[367839210,1750941074808,-517.95,0.00020273,2]
[367839211,1750941074818,-2686.11,0.00020273,2]
[367839212,1750941074828,-1363.41,0.00020273,2]
[367839213,1750941074837,-3716.07,0.00020273,2]
[367839214,1750941074847,-1046.42,0.00020273,2]
[367839215,1750941074857,-532.34,0.00020273,2]
[367839216,1750941074867,-790.12,0.00020273,2]
[367839217,1750941074876,-1720.1,0.00020273,2]
[367839218,1750941074886,-370.80919601,0.00020273,2]
[367839219,1750941074896,-607.72,0.00020273,2]
[367839220,1750941074906,-738.59,0.00020273,2]
[367839221,1750941074917,-683.98,0.00020273,2]
[367839222,1750941074927,-460.0,0.00020273,2]
[367839223,1750941074937,-460.0,0.00020273,2]
[367839224,1750941074947,-533.75,0.00020273,2]
[367839225,1750941074957,-1752.99,0.00020273,2]
[367839226,1750941074966,-1868.49,0.00020273,2]
[367839227,1750941074976,-761.74,0.00020273,2]
[367839228,1750941074985,-620.54,0.00020273,2]
[367839229,1750941074994,-570.25,0.00020273,2]
[367839230,1750941075005,-1048.74,0.00020273,2]
[367839231,1750941075014,-890.8,0.00020273,2]
[367839232,1750941075024,-2024.11,0.00020273,2]
[367839233,1750941075033,-152.46579,0.00020273,2]
[367839234,1750941075043,-641.16,0.00020273,2]
[367839235,1750941075052,-753.25,0.00020273,2]
[367839236,1750941075061,-560.58,0.00020273,2]
[367839237,1750941075071,-510.97,0.00020273,2]
[367839238,1750941075080,-1034.46,0.00020273,2]
[367839239,1750941075090,-685.54,0.00020273,2]
[367839240,1750941075099,-501.72,0.00020273,2]
[367839241,1750941075234,-594.59,0.00020273,2]
[367839242,1750941075244,-743.6,0.00020273,2]
[367839243,1750941075254,-2173.59,0.00020273,2]
[367839244,1750941075264,-2150.76,0.00020273,2]
[367839245,1750941075274,-603.43,0.00020273,2]
[367839246,1750941075283,-594.3,0.00020273,2]
[367839247,1750941075292,-1345.47,0.00020273,2]
[367839248,1750941075302,-151.0,0.00020273,2]
[367839249,1750941075312,-721.39,0.00020273,2]
[367839250,1750941075322,-460.0,0.00020273,2]
[367839251,1750941075333,-885.25,0.00020273,2]
[367839252,1750941075343,-1390.16,0.00020273,2]
[367839253,1750941075354,-460.0,0.00020273,2]
[367839254,1750941075364,-460.0,0.00020273,2]
[367839255,1750941075374,-2659.29,0.00020273,2]
[367839256,1750941075383,-460.0,0.00020273,2]
[367839257,1750941075393,-581.91,0.00020273,2]
[367839258,1750941075404,-2051.31,0.00020273,2]
[367839259,1750941075415,-479.83,0.00020273,2]
[367839260,1750941075425,-569.65,0.00020273,2]
[367839261,1750941075434,-243.0,0.00020339,2]
[367839262,1750941075443,-243.0,0.00020364,2]
[367839263,1750941075453,-187.70087121,0.00020372,5]
[367839264,1750941075464,-524.25751634,0.000204,3]
[367839265,1750941075474,-243.0,0.00020401,2]
[367839266,1750941075483,-302.574,0.00020438,2]
[367839267,1750941075492,-2764.78833449,0.00020486,3]
[367839268,1750941075502,-3000.0,0.00020492,2]
[367839269,1750941075511,-846.92323443,0.000205,3]
[367839270,1750941075520,-213.72380786,0.000205,3]
[367839271,1750941075530,-25000.0,0.00020533,2]
[367839272,1750941075539,-5000.0,0.00020533,2]
[367839273,1750941075549,-460.0,0.00020547,2]
[367839274,1750941075558,-460.0,0.00020547,2]
[367839275,1750941075567,-460.0,0.00020547,2]
[367839276,1750941075576,-460.0,0.00020547,2]
[367839277,1750941075586,-473.28,0.00020547,2]
[367839278,1750941075595,-460.0,0.00020547,2]
[367839279,1750941075604,-888.46,0.00020547,2]
[367839280,1750941075614,-791.24,0.00020547,2]
[367839281,1750941075624,-500.0,0.00020547,14]
[367839282,1750941075633,-460.0,0.00020547,2]
[367839283,1750941075644,-807.51,0.00020547,2]
[367839284,1750941075654,-460.0,0.00020547,2]
[367839285,1750941075664,-460.0,0.00020547,2]
[367839286,1750941075674,-503.24,0.00020547,2]
[367839287,1750941075683,-631.7,0.00020547,2]
[367839288,1750941075694,-460.0,0.00020547,2]
[367839289,1750941075703,-742.62,0.00020547,2]
[367839290,1750941075715,-460.0,0.00020547,2]
[367839291,1750941075724,-472.84,0.00020547,2]
[367839292,1750941075734,-471.26,0.00020547,2]
[367839293,1750941075743,-460.0,0.00020547,2]
[367839294,1750941075753,-460.0,0.00020547,2]
[367839295,1750941075761,-803.0,0.00020547,2]
[367839296,1750941075771,-566.19,0.00020547,2]
[367839297,1750941075781,-531.21,0.00020547,2]
[367839298,1750941075791,-586.58,0.00020547,2]
[367839299,1750941075801,-460.0,0.00020547,2]
[367839300,1750941075811,-460.0,0.00020547,2]
[367839301,1750941075820,-518.12664175,0.00020547,2]
[367839302,1750941075830,-1446.03,0.00020547,2]
[367839303,1750941075839,-1888.57,0.00020547,2]
[367839304,1750941075848,-460.0,0.00020547,2]
[367839305,1750941075858,-2010.83,0.00020547,2]
[367839306,1750941075868,-460.0,0.00020547,2]
[367839307,1750941075877,-460.0,0.00020547,2]
[367839308,1750941075886,-460.0,0.00020547,2]
[367839309,1750941075896,-224.63,0.00020547,2]
[367839310,1750941075905,-706.02,0.00020547,2]
[367839311,1750941075915,-947.82,0.00020547,2]
[367839312,1750941075924,-686.64,0.00020547,2]
[367839313,1750941075935,-528.25,0.00020547,2]
[367839314,1750941075945,-630.9,0.00020547,2]
[367839315,1750941075954,-4731.44,0.00020547,2]
[367839316,1750941075964,-464.51,0.00020547,2]
[367839317,1750941075974,-460.0,0.00020547,2]
[367839318,1750941075984,-719.52,0.00020547,2]
[367839319,1750941075993,-806.15,0.00020547,2]
[367839320,1750941076003,-548.98,0.00020547,2]
[367839321,1750941076013,-608.18,0.00020547,2]
[367839322,1750941076022,-5800.83,0.00020547,2]
[367839323,1750941076032,-692.44,0.00020547,2]
[367839324,1750941076042,-866.92,0.00020547,2]
[367839325,1750941076052,-336.31826298,0.00020547,2]
[367839326,1750941076061,-2909.6,0.00020547,2]
[367839327,1750941076071,-517.95,0.00020547,2]
[367839328,1750941076081,-2686.11,0.00020547,2]
[367839329,1750941076091,-1363.41,0.00020547,2]
[367839330,1750941076101,-3716.07,0.00020547,2]
[367839331,1750941076112,-1046.42,0.00020547,2]
[367839332,1750941076123,-532.34,0.00020547,2]
[367839333,1750941076133,-790.12,0.00020547,2]
[367839334,1750941076143,-1720.1,0.00020547,2]
[367839335,1750941076155,-607.72,0.00020547,2]
[367839336,1750941076165,-738.59,0.00020547,2]
[367839337,1750941076174,-683.98,0.00020547,2]
[367839338,1750941076184,-460.0,0.00020547,2]
[367839339,1750941076194,-460.0,0.00020547,2]
[367839340,1750941076203,-533.75,0.00020547,2]
[367839341,1750941076215,-1752.99,0.00020547,2]
[367839342,1750941076225,-1868.49,0.00020547,2]
[367839343,1750941076235,-761.74,0.00020547,2]
[367839344,1750941076244,-620.54,0.00020547,2]
[367839345,1750941076253,-570.25,0.00020547,2]
[367839346,1750941076263,-1048.74,0.00020547,2]
[367839347,1750941076272,-890.8,0.00020547,2]
[367839348,1750941076282,-2024.11,0.00020547,2]
[367839349,1750941076292,-641.16,0.00020547,2]
[367839350,1750941076301,-753.25,0.00020547,2]
[367839351,1750941076311,-560.58,0.00020547,2]
[367839352,1750941076321,-510.97,0.00020547,2]
[367839353,1750941076330,-1034.46,0.00020547,2]
[367839354,1750941076340,-685.54,0.00020547,2]
[367839355,1750941076349,-501.72,0.00020547,2]
[367839356,1750941076358,-594.59,0.00020547,2]
[367839357,1750941076369,-743.6,0.00020547,2]
[367839358,1750941076378,-2173.59,0.00020547,2]
[367839359,1750941076388,-2150.76,0.00020547,2]
[367839360,1750941076398,-603.43,0.00020547,2]
[367839361,1750941076407,-594.3,0.00020547,2]
[367839362,1750941076417,-1345.47,0.00020547,2]
[367839363,1750941076427,-721.39,0.00020547,2]
[367839364,1750941076439,-460.0,0.00020547,2]
[367839365,1750941076448,-885.25,0.00020547,2]
[367839366,1750941076458,-1390.16,0.00020547,2]
[367839367,1750941076468,-460.0,0.00020547,2]
[367839368,1750941076478,-460.0,0.00020547,2]
[367839369,1750941076488,-2659.29,0.00020547,2]
[367839370,1750941076497,-460.0,0.00020547,2]
[367839371,1750941076508,-581.91,0.00020547,2]
[367839372,1750941076518,-2051.31,0.00020547,2]
[367839373,1750941076527,-479.83,0.00020547,2]
[367839374,1750941076536,-569.65,0.00020547,2]
[367839375,1750941076546,-3507.37,0.000206,2]
[367839376,1750941076556,-11175.271891,0.00020613,2]
[367839377,1750941076566,-1500.0,0.00020641,2]
[367839378,1750941076576,-1800.0,0.00020641,2]
[367839379,1750941076586,-1500.0,0.00020641,2]
[367839380,1750941076596,-1500.0,0.00020641,2]
[367839381,1750941076607,-1500.0,0.00020641,2]
[367839382,1750941076618,-1607.57295933,0.00020641,2]
[367839383,1750941076628,-3469.52023835,0.000207,3]
[367839384,1750941076641,-160.0,0.000207,3]
[367839385,1750941076651,-2764.78833449,0.00020762,3]
[367839386,1750941076661,-215.0738,0.00020806,2]
[367839387,1750941076671,-460.0,0.00020821,2]
[367839388,1750941076680,-460.0,0.00020821,2]
[367839389,1750941076689,-460.0,0.00020821,2]
[367839390,1750941076699,-460.0,0.00020821,2]
[367839391,1750941076710,-473.28,0.00020821,2]
[367839392,1750941076719,-460.0,0.00020821,2]
[367839393,1750941076728,-888.46,0.00020821,2]
[367839394,1750941076738,-791.24,0.00020821,2]
[367839395,1750941076748,-460.0,0.00020821,2]
[367839396,1750941076758,-807.51,0.00020821,2]
[367839397,1750941076768,-460.0,0.00020821,2]
[367839398,1750941076777,-460.0,0.00020821,2]
[367839399,1750941076787,-503.24,0.00020821,2]
[367839400,1750941076797,-631.7,0.00020821,2]
[367839401,1750941076808,-460.0,0.00020821,2]
[367839402,1750941076818,-742.62,0.00020821,2]
[367839403,1750941076827,-486.47,0.00020821,2]
[367839404,1750941076837,-471.26,0.00020821,2]
[367839405,1750941076846,-460.0,0.00020821,2]
[367839406,1750941076856,-460.0,0.00020821,2]
[367839407,1750941076865,-803.0,0.00020821,2]
[367839408,1750941076875,-566.19,0.00020821,2]
[367839409,1750941076884,-531.21,0.00020821,2]
[367839410,1750941076895,-586.58,0.00020821,2]
[367839411,1750941076904,-460.0,0.00020821,2]
[367839412,1750941076914,-460.0,0.00020821,2]
[367839413,1750941076923,-1446.03,0.00020821,2]
[367839414,1750941076933,-1888.57,0.00020821,2]
[367839415,1750941076942,-460.0,0.00020821,2]
[367839416,1750941076952,-2010.83,0.00020821,2]
[367839417,1750941076963,-460.0,0.00020821,2]
[367839418,1750941076972,-460.0,0.00020821,2]
[367839419,1750941076982,-556.24212823,0.00020821,2]
[367839420,1750941076992,-706.02,0.00020821,2]
[367839421,1750941077002,-947.82,0.00020821,2]
[367839422,1750941077011,-686.64,0.00020821,2]
[367839423,1750941077021,-528.25,0.00020821,2]
[367839424,1750941077030,-630.9,0.00020821,2]
[367839425,1750941077040,-4731.44,0.00020821,2]
[367839426,1750941077049,-464.51,0.00020821,2]
[367839427,1750941077059,-460.0,0.00020821,2]
[367839428,1750941077068,-719.52,0.00020821,2]
[367839429,1750941077078,-806.15,0.00020821,2]
[367839430,1750941077088,-548.98,0.00020821,2]
[367839431,1750941077097,-5800.83,0.00020821,2]
[367839432,1750941077106,-692.44,0.00020821,2]
[367839433,1750941077116,-866.92,0.00020821,2]
[367839434,1750941077125,-2909.6,0.00020821,2]
[367839435,1750941077135,-517.95,0.00020821,2]
[367839436,1750941077145,-2686.11,0.00020821,2]
[367839437,1750941077155,-1363.41,0.00020821,2]
[367839438,1750941077164,-3716.07,0.00020821,2]
[367839439,1750941077175,-1046.42,0.00020821,2]
[367839440,1750941077286,-532.34,0.00020821,2]
[367839441,1750941077305,-790.12,0.00020821,2]
[367839442,1750941077314,-1720.1,0.00020821,2]
[367839443,1750941077324,-607.72,0.00020821,2]
[367839444,1750941077334,-738.59,0.00020821,2]
[367839445,1750941077343,-683.98,0.00020821,2]
[367839446,1750941077353,-460.0,0.00020821,2]
[367839447,1750941077362,-460.0,0.00020821,2]
[367839448,1750941077372,-533.75,0.00020821,2]
[367839449,1750941077381,-1868.49,0.00020821,2]
[367839450,1750941077390,-1752.99,0.00020821,2]
[367839451,1750941077400,-761.74,0.00020821,2]
[367839452,1750941077410,-620.54,0.00020821,2]
[367839453,1750941077419,-570.25,0.00020821,2]
[367839454,1750941077430,-1048.74,0.00020821,2]
[367839455,1750941077439,-890.8,0.00020821,2]
[367839456,1750941077449,-2024.11,0.00020821,2]
[367839457,1750941077459,-641.16,0.00020821,2]
[367839458,1750941077470,-753.25,0.00020821,2]
[367839459,1750941077480,-560.58,0.00020821,2]
[367839460,1750941077489,-510.97,0.00020821,2]
[367839461,1750941077499,-1034.46,0.00020821,2]
[367839462,1750941077508,-685.54,0.00020821,2]
[367839463,1750941077518,-501.72,0.00020821,2]
[367839464,1750941077527,-594.59,0.00020821,2]
[367839465,1750941077537,-743.6,0.00020821,2]
[367839466,1750941077546,-2173.59,0.00020821,2]
[367839467,1750941077556,-2150.76,0.00020821,2]
[367839468,1750941077566,-603.43,0.00020821,2]
[367839469,1750941077575,-594.3,0.00020821,2]
[367839470,1750941077585,-1345.47,0.00020821,2]
[367839471,1750941077595,-721.39,0.00020821,2]
[367839472,1750941077604,-460.0,0.00020821,2]
[367839473,1750941077614,-885.25,0.00020821,2]
[367839474,1750941077624,-1390.16,0.00020821,2]
[367839475,1750941077633,-568.8232412,0.00020821,2]
[367839476,1750941077646,-572.47176545,0.00020821,2]
[367839477,1750941077656,-460.0,0.00020821,2]
[367839478,1750941077665,-2659.29,0.00020821,2]
[367839479,1750941077675,-581.91,0.00020821,2]
[367839480,1750941077686,-2051.31,0.00020821,2]
[367839481,1750941077695,-479.83,0.00020821,2]
[367839482,1750941077704,-569.65,0.00020821,2]
[367839483,1750941077716,-214.33134213,0.00020822,3]
[367839484,1750941077726,-500.0,0.00020958,15]
[367839485,1750941077736,-6544.25534237,0.00020988,2]
[367839486,1750941077745,-10008.0902976,0.00021,2]
[367839487,1750941077755,-650.999999,0.00021,2]
[367839488,1750941077764,-160.0,0.00021,2]
[367839489,1750941077773,-2764.78833449,0.00021038,4]
[367839490,1750941077783,-557.77139467,0.0002104,2]
[367839491,1750941077793,-2200.0,0.00021048,2]
[367839492,1750941077803,-25000.0,0.00021081,2]
[367839493,1750941077813,-5000.0,0.00021081,2]
[367839494,1750941077822,-460.0,0.00021095,2]
[367839495,1750941077832,-460.0,0.00021095,2]
[367839496,1750941077841,-460.0,0.00021095,2]
[367839497,1750941077851,-460.0,0.00021095,2]
[367839498,1750941077860,-473.28,0.00021095,2]
[367839499,1750941077869,-460.0,0.00021095,2]
[367839500,1750941077879,-888.46,0.00021095,2]
[367839501,1750941077889,-791.24,0.00021095,2]
[367839502,1750941077898,-460.0,0.00021095,2]
[367839503,1750941077909,-807.51,0.00021095,2]
[367839504,1750941077921,-485.82,0.00021095,2]
[367839505,1750941077930,-441.97,0.00021095,2]
[367839506,1750941077941,-503.24,0.00021095,2]
[367839507,1750941077951,-631.7,0.00021095,2]
[367839508,1750941077962,-460.0,0.00021095,2]
[367839509,1750941077972,-742.62,0.00021095,2]
[367839510,1750941077981,-471.26,0.00021095,2]
[367839511,1750941077990,-460.0,0.00021095,2]
[367839512,1750941077999,-460.0,0.00021095,2]
[367839513,1750941078009,-803.0,0.00021095,2]
[367839514,1750941078018,-566.19,0.00021095,2]
[367839515,1750941078028,-531.21,0.00021095,2]
[367839516,1750941078038,-586.58,0.00021095,2]
[367839517,1750941078048,-460.0,0.00021095,2]
[367839518,1750941078058,-460.0,0.00021095,2]
[367839519,1750941078067,-1446.03,0.00021095,2]
[367839520,1750941078077,-1888.57,0.00021095,2]
[367839521,1750941078087,-599.63577361,0.00021095,2]
[367839522,1750941078097,-2010.83,0.00021095,2]
[367839523,1750941078107,-460.0,0.00021095,2]
[367839524,1750941078116,-460.0,0.00021095,2]
[367839525,1750941078126,-706.02,0.00021095,2]
[367839526,1750941078135,-947.82,0.00021095,2]
[367839527,1750941078145,-686.64,0.00021095,2]
[367839528,1750941078154,-528.25,0.00021095,2]
[367839529,1750941078164,-630.9,0.00021095,2]
[367839530,1750941078173,-4731.44,0.00021095,2]
[367839531,1750941078183,-464.51,0.00021095,2]
[367839532,1750941078192,-402.77,0.00021095,2]
[367839533,1750941078202,-719.52,0.00021095,2]
[367839534,1750941078212,-806.15,0.00021095,2]
[367839535,1750941078222,-548.98,0.00021095,2]
[367839536,1750941078232,-5800.83,0.00021095,2]
[367839537,1750941078243,-692.44,0.00021095,2]
[367839538,1750941078252,-866.92,0.00021095,2]
[367839539,1750941078262,-2909.6,0.00021095,2]
[367839540,1750941078272,-517.95,0.00021095,2]
[367839541,1750941078281,-2686.11,0.00021095,2]
[367839542,1750941078291,-1363.41,0.00021095,2]
[367839543,1750941078300,-3716.07,0.00021095,2]
[367839544,1750941078310,-1046.42,0.00021095,2]
[367839545,1750941078320,-532.34,0.00021095,2]
[367839546,1750941078329,-790.12,0.00021095,2]
[367839547,1750941078338,-1720.1,0.00021095,2]
[367839548,1750941078348,-607.72,0.00021095,2]
[367839549,1750941078358,-738.59,0.00021095,2]
[367839550,1750941078368,-683.98,0.00021095,2]
[367839551,1750941078377,-460.0,0.00021095,2]
[367839552,1750941078386,-460.0,0.00021095,2]
[367839553,1750941078395,-533.75,0.00021095,2]
[367839554,1750941078405,-1868.49,0.00021095,2]
[367839555,1750941078414,-1752.99,0.00021095,2]
[367839556,1750941078423,-761.74,0.00021095,2]
[367839557,1750941078432,-620.54,0.00021095,2]
[367839558,1750941078441,-570.25,0.00021095,2]
[367839559,1750941078451,-1048.74,0.00021095,2]
[367839560,1750941078463,-890.8,0.00021095,2]
[367839561,1750941078473,-2024.11,0.00021095,2]
[367839562,1750941078484,-641.16,0.00021095,2]
[367839563,1750941078493,-753.25,0.00021095,2]
[367839564,1750941078503,-560.58,0.00021095,2]
[367839565,1750941078513,-510.97,0.00021095,2]
[367839566,1750941078522,-1034.46,0.00021095,2]
[367839567,1750941078532,-685.54,0.00021095,2]
[367839568,1750941078542,-501.72,0.00021095,2]
[367839569,1750941078551,-594.59,0.00021095,2]
[367839570,1750941078561,-743.6,0.00021095,2]
[367839571,1750941078571,-2173.59,0.00021095,2]
[367839572,1750941078581,-2150.76,0.00021095,2]
[367839573,1750941078590,-603.43,0.00021095,2]
[367839574,1750941078599,-594.3,0.00021095,2]
[367839575,1750941078609,-1345.47,0.00021095,2]
[367839576,1750941078619,-721.39,0.00021095,2]
[367839577,1750941078628,-460.0,0.00021095,2]
[367839578,1750941078638,-885.25,0.00021095,2]
[367839579,1750941078651,-1390.16,0.00021095,2]
[367839580,1750941078660,-460.0,0.00021095,2]
[367839581,1750941078670,-2659.29,0.00021095,2]
[367839582,1750941078679,-2051.31,0.00021095,2]
[367839583,1750941078689,-581.91,0.00021095,2]
[367839584,1750941078698,-479.83,0.00021095,2]
[367839585,1750941078707,-569.65,0.00021095,2]
[367839586,1750941078720,-2000.0,0.00021189,2]
[367839587,1750941078729,-2400.0,0.00021189,2]
[367839588,1750941078739,-2000.0,0.00021189,2]
[367839589,1750941078748,-2000.0,0.00021189,2]
[367839590,1750941078758,-2000.0,0.00021189,2]
[367839591,1750941078767,-823.0,0.00021223,2]
[367839592,1750941078776,-243.0,0.00021299,2]
[367839593,1750941078785,-2764.78833449,0.00021314,5]
[367839594,1750941078795,-460.0,0.00021369,2]
[367839595,1750941078804,-460.0,0.00021369,2]
[367839596,1750941078813,-460.0,0.00021369,2]
[367839597,1750941078822,-460.0,0.00021369,2]
[367839598,1750941078831,-473.28,0.00021369,2]
[367839599,1750941078840,-571.24543167,0.00021369,2]
[367839600,1750941078849,-888.46,0.00021369,2]
[367839601,1750941078858,-791.24,0.00021369,2]
[367839602,1750941078867,-500.0,0.00021369,16]
[367839603,1750941078876,-460.0,0.00021369,2]
[367839604,1750941078885,-807.51,0.00021369,2]
[367839605,1750941078895,-503.24,0.00021369,2]
[367839606,1750941078904,-631.7,0.00021369,2]
[367839607,1750941078914,-460.0,0.00021369,2]
[367839608,1750941078923,-742.62,0.00021369,2]
[367839609,1750941078932,-471.26,0.00021369,2]
[367839610,1750941078942,-460.0,0.00021369,2]
[367839611,1750941078951,-460.0,0.00021369,2]
[367839612,1750941078961,-803.0,0.00021369,2]
[367839613,1750941078973,-566.19,0.00021369,2]
[367839614,1750941078983,-531.21,0.00021369,2]
[367839615,1750941078993,-586.58,0.00021369,2]
[367839616,1750941079003,-454.48104822,0.00021369,2]
[367839617,1750941079012,-460.0,0.00021369,2]
[367839618,1750941079023,-1446.03,0.00021369,2]
[367839619,1750941079033,-1888.57,0.00021369,2]
[367839620,1750941079042,-2010.83,0.00021369,2]
[367839621,1750941079051,-460.0,0.00021369,2]
[367839622,1750941079060,-460.0,0.00021369,2]
[367839623,1750941079070,-706.02,0.00021369,2]
[367839624,1750941079180,-947.82,0.00021369,2]
[367839625,1750941079191,-686.64,0.00021369,2]